Cogmind - Beta 15 @@@ ROGUE MODE // 2025.07.04 @ 16:02:13 Player: Kaeinara Result: Self-destructed Performance ------------- Evolutions (3) 1500 Regions Visited (4) 800 Robots Destroyed (37) 185 Value Destroyed (1205) 1205 Prototype IDs (6) 120 Alien Tech Used (0) 0 Bonus (200) 200 TOTAL SCORE: 4010 Bonus ------- Pacifist 200 Cogmind --------- Core Integrity 590/700 Matter 148/300 Energy 100/100 System Corruption 0% Temperature Cool (0) Movement Walking (190) Ox1 Location -7/Factory Parts ------- > --- POWER (1) -------- (None) > --- PROPULSION (4) --- Aluminum Leg Aluminum Leg > --- UTILITY (5) ------ Large Storage Unit Weight Redist. System Advanced Visual Processing Unit Hacking Suite > --- WEAPON (3) ------- Improved Assault Rifle High-powered Shotgun Datajack > --- INVENTORY (15) --- Ion Engine Armored Treads Sensor Array Terrain Scan Processor Kinecellerator Utility Shielding Light Armor Plating Light Armor Plating Hardlight Generator Arc Projector Medium Laser High-powered Shotgun Light Cannon Light Cannon Scythe Peak State ------------ > --- POWER ------------ Cooled Ion Engine > --- PROPULSION ------- Aluminum Leg Aluminum Leg Aluminum Leg Aluminum Leg > --- UTILITY ---------- Large Storage Unit Weight Redist. System Advanced Visual Processing Unit Improved Light Armor Plating Hacking Suite > --- WEAPON ----------- Improved Assault Rifle High-powered Shotgun Datajack > --- INVENTORY -------- Ion Engine Armored Treads Sensor Array Terrain Scan Processor Kinecellerator Utility Shielding Light Armor Plating Light Armor Plating Hardlight Generator Arc Projector Medium Laser High-powered Shotgun Light Cannon Light Cannon Scythe [Rating: 29] Favorites ----------- Power Cooled Ion Engine Engine Cooled Ion Engine Propulsion Aluminum Leg Treads Light Treads Leg Aluminum Leg Utility Light Armor Plating Device Terrain Scanner Storage Large Storage Unit Processor Advanced Visual Processing Unit Hackware Hacking Suite Protection Light Armor Plating Weapon Heavy Assault Rifle Energy Gun Improved EM Shotgun Ballistic Gun Heavy Assault Rifle Special Melee Weapon Datajack Build | -11 -10 -9 -8 -7 ------- Run | Yrd Mat Mat Mat Fac Slots Evolved 6 | . . 2 2 2 Power . | . . . . . Propulsion 2 | . . 2 . . Utility 3 | . . . 2 1 Weapon 1 | . . . . 1 Parts Attached 36 | 6 1 13 14 2 Power 4 | 1 . 3 . . Engine 4 | 1 . 3 . . Core . | . . . . . Reactor . | . . . . . Propulsion 12 | 2 . 5 5 . Treads 3 | . . 2 1 . Leg 9 | 2 . 3 4 . Wheel . | . . . . . Hover . | . . . . . Flight . | . . . . . Utility 11 | 1 1 2 6 1 Device 2 | . 1 . 1 . Storage 2 | 1 . 1 . . Processor 1 | . . . 1 . Hackware 1 | . . . . 1 Protection 5 | . . 1 4 . Artifact . | . . . . . Weapon 9 | 2 . 3 3 1 Energy Gun 2 | 1 . 1 . . Energy Cannon . | . . . . . Ballistic Gun 6 | 1 . 2 3 . Ballistic Cannon . | . . . . . Launcher . | . . . . . Special Weapon . | . . . . . Impact Weapon . | . . . . . Slashing Weapon . | . . . . . Piercing Weapon . | . . . . . Special Melee Weapon 1 | . . . . 1 Unidentified Prototypes 3 | . . 2 1 . Parts Lost 15 | . . 7 4 4 Power 2 | . . 1 . 1 Propulsion 8 | . . 4 2 2 Utility 3 | . . 1 1 1 Weapon 2 | . . 1 1 . Highest Loss Streak 4 | . . 4 2 4 To Critical Strikes . | . . . . . Average Backups 10 | 3 7 9 12 14 Power . | 1 1 . 1 1 Propulsion . | 1 2 . . 1 Utility 3 | . 1 3 5 6 Weapon 4 | 1 2 4 4 5 Tool/Special . | . . . . . Unused Backups 14 | . 2 2 . 10 Power 1 | . 1 . . . Propulsion 1 | . 1 . . . Utility 6 | . . 1 . 5 Weapon 6 | . . 1 . 5 Tool/Special . | . . . . . Average Slot Usage (%) 89 | . 98 94 80 98 Engine 10 | . 14 10 9 6 Treads 4 | . . 2 10 . Leg 23 | . 28 36 6 29 Device 6 | . 13 9 1 7 Storage 10 | . 14 11 9 7 Processor 2 | . . . 6 7 Protection 8 | . . 1 19 6 Energy Gun 8 | . 14 11 5 . Ballistic Gun 12 | . 14 11 12 15 Peak Build Rating 29 | 6 7 16 24 29 Average Rating 15 | 4 6 13 17 28 On Entrance 10 | . 6 7 14 24 Naked Turns . | . . . . . Heaviest Build 43 | 14 15 37 43 38 Greatest Support 46 | 20 20 43 46 46 Greatest Overweight (x) 3 | 1 . 2 3 . Average Overweight (x) . | . . . . . Largest Inventory Capacity 15 | 8 8 15 15 15 Average Capacity 12 | 7 8 12 15 15 Most Carried 15 | 6 8 13 15 15 Average Carried 10 | 3 7 9 12 14 Final Capacity 15 | 8 8 15 15 15 Final Carried 15 | 4 8 13 15 15 Class Distribution -------------------- 86% | Mutant 13% | Scavenger-Mutant Dominant Class ---------------- Mutant | -10/Materials Mutant | -9/Materials Mutant | -8/Materials Scavenger-Mutant | -7/Factory Resources | -11 -10 -9 -8 -7 ----------- Run | Yrd Mat Mat Mat Fac Matter Collected 1044 | 222 . 387 435 . Remotely . | . . . . . Salvage Created 1642 | . . 767 875 . Parts 83 | . . 45 38 . Haulers Intercepted 1 | . . 1 . . Recyclers Shooed 2 | . . 1 1 . Parts Field Recycled . | . . . . . Retrieved Matter . | . . . . . Parts Self-Destructed . | . . . . . Prevented . | . . . . . Kills | -11 -10 -9 -8 -7 ------- Run | Yrd Mat Mat Mat Fac Combat Hostiles Destroyed 28 | . . 14 14 . Guns 27 | . . 13 14 . AOE 1 | . . 1 . . Classes Destroyed 11 | . . 8 3 . Worker 1 | . . 1 . . Builder 1 | . . . 1 . Hauler 1 | . . 1 . . Recycler 2 | . . . 2 . Mechanic 1 | . . 1 . . Watcher 3 | . . 2 1 . Swarmer 3 | . . 2 1 . Grunt 14 | . . 5 9 . Brawler 2 | . . 2 . . Duelist 1 | . . . 1 . Sentry 8 | . . 5 3 . Best Kill Streak 5 | . . 3 5 . Combat Bots Only 3 | . . 3 3 . Max Kills in Single Turn 2 | . . 1 2 . Gunslinging . | . . . . . Exploded 1 | . . 1 . . Melee . | . . . . . Uniques/NPCs Destroyed . | . . . . . Combat | -11 -10 -9 -8 -7 -------- Run | Yrd Mat Mat Mat Fac Hostile Shots Fired 235 | . . 102 115 18 Missed 71 | . . 31 34 6 Hits 164 | . . 71 81 12 Melee 21 | . . 7 2 12 Projectile 143 | . . 64 79 . Critical Strikes 14 | . . 6 7 1 Damage Taken 2760 | . . 1041 1295 424 Core 449 | . . 174 165 110 Absorbed by Shields . | . . . . . Regen/Repaired (Parts) 43 | . . 43 . . Core Remaining (%) 81 | 100 100 56 70 . Volleys Fired 140 | . 1 62 73 4 Largest 2 | . 2 2 2 2 Hottest 73 | . 70 73 68 48 Shots Fired 278 | . 2 122 146 8 Gun 278 | . 2 122 146 8 Cannon . | . . . . . Launcher . | . . . . . Special . | . . . . . Kinetic 207 | . 1 61 137 8 Thermal 44 | . 1 43 . . Explosive . | . . . . . Electromagnetic 27 | . . 18 9 . Robot Hit Streak 15 | . . 15 13 4 Robot Miss Streak 9 | . 2 9 4 3 Penetration Max . | . . . . . Secondary Targets 1 | . . 1 . . Max Gunslinging Chain 1 | . . 1 . . Shots Hit Robots 197 | . . 90 101 6 Core Hits 74 | . . 36 36 2 Critical Kills . | . . . . . Critical Parts Destroyed . | . . . . . Critical Strikes 3 | . . 3 . . Burn 3 | . . 3 . . Melee Attacks . | . . . . . Impact . | . . . . . Slashing . | . . . . . Piercing . | . . . . . Sneak Attacks . | . . . . . Combat Hostiles . | . . . . . Follow-up Attacks . | . . . . . Damage Inflicted 3096 | . . 1369 1625 102 Guns 3041 | . . 1314 1625 102 Cannons . | . . . . . Explosions 55 | . . 55 . . Melee . | . . . . . Ramming . | . . . . . Kinetic 2255 | . . 667 1486 102 Thermal 436 | . . 436 . . Explosive . | . . . . . Electromagnetic 405 | . . 266 139 . Impact . | . . . . . Slashing . | . . . . . Piercing . | . . . . . Highest Corruption 9 | . . 9 . . Average Corruption 8 | . . 8 . . Corruption Purged . | . . . . . Corruption Blocked . | . . . . . Effects 7 | . . 7 . . Message Errors 3 | . . 3 . . Matter Fused 3 | . . 3 . . Heat Flow Errors 1 | . . 1 . . Overload Shots . | . . . . . Overflow Damage 44 | . . 44 . . Projectiles . | . . . . . Explosions 44 | . . 44 . . Melee . | . . . . . Knockbacks . | . . . . . Impact . | . . . . . Kinetic . | . . . . . Secondary . | . . . . . Self-Inflicted Damage 49 | . . 49 . . Shots 1 | . . 1 . . Rammed . | . . . . . Targets Rammed . | . . . . . Kicked . | . . . . . Crushed . | . . . . . Highest Temperature 314 | . 9 314 27 . Average Temperature 40 | . 6 55 6 . Received Heat Transfer 1071 | . . 279 792 . Siege Activations . | . . . . . Martial Activations . | . . . . . Shielding Activations . | . . . . . Robots Disrupted . | . . . . . Combat Hostiles . | . . . . . Robots Corrupted . | . . . . . Combat Hostiles . | . . . . . Parts Fried 1 | . . 1 . . Impact Corruptions . | . . . . . Robots Melted . | . . . . . Combat Hostiles . | . . . . . Parts Melted 3 | . . 3 . . Heat Transferred 1382 | . . 1382 . . Parts Sabotaged . | . . . . . Parts Stolen . | . . . . . Parts Stripped . | . . . . . Power Chain Reactions 1 | . . 1 . . Alert | -11 -10 -9 -8 -7 ------- Run | Yrd Mat Mat Mat Fac Maximum Alert Level 1 | . . . 1 . Low Security (%) 97 | 100 100 100 93 100 Level 1 2 | . . . 6 . Level 2 . | . . . . . Level 3 . | . . . . . Level 4 . | . . . . . Level 5 . | . . . . . High Security . | . . . . . Max Security . | . . . . . Peak Influence 251 | . 45 90 251 112 Initial 112 | . . . 15 112 Average 48 | . 5 32 78 62 Influence Increases 1006 | . 53 464 489 . Destroy 0b10 Robot/C 560 | . . 280 280 . Destroy 0b10 Robot/NC 45 | . . 25 20 . Destroy Leader 168 | . . 96 72 . Successful Hack 39 | . 8 22 9 . Disable Machine 15 | . . . 15 . Destroy Structure 14 | . . 11 3 . Lose Combat Pursuer 165 | . 45 30 90 . Influence Decreases 1006 | . 53 426 280 247 Entered New Map 158 | . . . 23 135 Time Decay 776 | . 53 386 237 100 Lost Part 72 | . . 40 20 12 Squads Dispatched 4 | . 1 1 2 . Investigation 3 | . 1 . 2 . Extermination . | . . . . . Reinforcement 1 | . . 1 . . Assault . | . . . . . Garrison . | . . . . . Intercept . | . . . . . Searches Triggered . | . . . . . Construction Impeded . | . . . . . Haulers Reinforced . | . . . . . Active Scanning Responses . | . . . . . Cargo Convoy Interrupts . | . . . . . Stealth | -11 -10 -9 -8 -7 --------- Run | Yrd Mat Mat Mat Fac Distress Signals 3 | . . 2 1 . Communications Jammed . | . . . . . Distress Signals . | . . . . . Times Spotted 56 | . . 25 28 3 Peak Tracking Total 9 | . 3 5 9 3 Tactical Retreats 6 | . 1 2 3 . Traps | -11 -10 -9 -8 -7 ------- Run | Yrd Mat Mat Mat Fac Traps Triggered 3 | . 1 . 2 . Indirectly . | . . . . . Trap Hack Attempts . | . . . . . Triggered . | . . . . . Disarmed . | . . . . . Reprogrammed . | . . . . . Reused . | . . . . . Traps Extracted . | . . . . . Installed . | . . . . . Triggered . | . . . . . Machines | -11 -10 -9 -8 -7 ---------- Run | Yrd Mat Mat Mat Fac Machines Disabled 1 | . . . 1 . Max in Single Turn 1 | . . . 1 . Machines Repaired . | . . . . . Machines Dismantled . | . . . . . Machines Sabotaged . | . . . . . Overloaded Fab Kills . | . . . . . Hacking | -11 -10 -9 -8 -7 --------- Run | Yrd Mat Mat Mat Fac Machines Accessed 14 | . 2 8 4 . Terminals 13 | . 2 7 4 . Fabricators . | . . . . . Repair Stations 1 | . . 1 . . Recycling Units . | . . . . . Scanalyzers . | . . . . . Garrison Access . | . . . . . Total Hacks 35 | . 11 14 10 . Successful 17 | . 4 8 5 . Failed 18 | . 7 6 5 . Catastrophic 7 | . 3 2 2 . Database Lockouts . | . . . . . Manual 25 | . 9 9 7 . Terminals 33 | . 11 12 10 . Fabricators . | . . . . . Repair Stations 2 | . . 2 . . Recycling Units . | . . . . . Scanalyzers . | . . . . . Garrison Access . | . . . . . Terminal Hacks 6 | . 2 2 2 . Prototype ID Bank 2 | . 1 1 . . Alert Level 2 | . . 1 1 . Hauler Manifests 2 | . 1 . 1 . Fabricator Hacks . | . . . . . Repair Station Hacks 2 | . . 2 . . Scan Component 1 | . . 1 . . Repair 1 | . . 1 . . Recycling Unit Hacks . | . . . . . Scanalyzer . | . . . . . Garrison Access Hacks . | . . . . . Unauthorized Hacks 9 | . 2 4 3 . Terminals 9 | . 2 4 3 . Botnet 9 | . 2 4 3 . Fabricators . | . . . . . Repair Stations . | . . . . . Recycling Units . | . . . . . Scanalyzers . | . . . . . Garrison Access . | . . . . . Data Cores Recovered . | . . . . . Used . | . . . . . Hacking Detections 14 | . 2 8 4 . Full Trace Events . | . . . . . Feedback Events . | . . . . . Feedback Blocked . | . . . . . Robot Schematics Acquired . | . . . . . Robots Built . | . . . . . Authchips . | . . . . . Time . | . . . . . Total Robot Build Rating . | . . . . . Part Schematics Acquired . | . . . . . Parts Built . | . . . . . Authchips . | . . . . . Time . | . . . . . Total Part Build Rating . | . . . . . Parts Repaired 1 | . . 1 . . Time 32 | . . 32 . . Parts Recycled . | . . . . . Recycled Matter . | . . . . . Retrieved Matter . | . . . . . Retrieved Components . | . . . . . Parts Scanalyzed . | . . . . . Part Schematics Acquired . | . . . . . Parts Damaged . | . . . . . Bothacking | -11 -10 -9 -8 -7 ------------ Run | Yrd Mat Mat Mat Fac Used RIF Installer . | . . . . . Robots Hacked . | . . . . . Non-combat . | . . . . . Combat . | . . . . . Robot Hacks Applied . | . . . . . Relay Couplers Released . | . . . . . Fabnet Peak Effective % . | . . . . . Robots Rewired . | . . . . . Allies Hacked . | . . . . . Hacks Repelled . | . . . . . Allies | -11 -10 -9 -8 -7 -------- Run | Yrd Mat Mat Mat Fac Total Allies . | . . . . . Largest Group . | . . . . . Highest-Rated Group . | . . . . . Highest-Rated Ally . | . . . . . Total Orders . | . . . . . Ally Attacks . | . . . . . Total Damage . | . . . . . Kills . | . . . . . Allies Corrupted . | . . . . . Allies Melted . | . . . . . Intel | -11 -10 -9 -8 -7 ------- Run | Yrd Mat Mat Mat Fac Active Infowar (turns) 2698 | . 389 1153 942 214 Optics 1156 | . . . 942 214 Terrain 1542 | . 389 1153 . . Robot Analysis Total . | . . . . . Derelict Logs Recovered . | . . . . . Drone Launches . | . . . . . Drone Recoveries . | . . . . . Exploration | -11 -10 -9 -8 -7 ------------- Run | Yrd Mat Mat Mat Fac Turns Passed 3412 | 59 412 1391 1336 214 Spaces Moved 1479 | 40 260 604 483 92 Core 9 | 9 . . . . Treads 307 | . . . 307 . Legs 1163 | 31 260 604 176 92 Wheels . | . . . . . Hover . | . . . . . Flight . | . . . . . Fastest Speed 50 | 50 120 120 120 120 Average Speed 153 | 109 120 135 203 120 Slowest Speed 330 | 120 120 260 330 120 Overloaded Moves . | . . . . . Propulsion Burnouts . | . . . . . Robots Hopped . | . . . . . Potential Cave-ins . | . . . . . Cave-ins Triggered . | . . . . . Exploration Rate (%) 27 | 4 41 51 38 4 Regions Visited 4 Branch Regions . Pre-discovered Areas . | . . . . . Known Exits Taken . | . . . . . Unknown Exits Taken 4 | 1 1 1 1 . Scrap Searched . | . . . . . Spaces Dug . | . . . . . Terrain Destroyed 9 | . . 9 . . Melee . | . . . . . Projectile . | . . . . . AOE 9 | . . 9 . . Terrain Rammed . | . . . . . Walls Destroyed . | . . . . . Machines Disabled . | . . . . . Actions | -11 -10 -9 -8 -7 --------- Run | Yrd Mat Mat Mat Fac Total 2346 | 55 359 1053 691 188 Wait 634 | . 89 351 108 86 Move 1475 | 39 259 603 482 92 Hop . | . . . . . Pick Up 46 | 10 7 16 10 3 Fast Attach 3 | . . 1 2 . Attach 22 | 6 1 7 6 2 Detach . | . . . . . Swap 15 | . . 8 7 . Drop 11 | . 2 5 3 1 Fire 140 | . 1 62 73 4 Melee . | . . . . . Ram . | . . . . . Kick . | . . . . . Crush . | . . . . . Escape Stasis . | . . . . . Rewire . | . . . . . Trap . | . . . . . Miscellaneous . | . . . . . Route ------- -11/Scrapyard -10/Materials -9/Materials -8/Materials -7/Factory History --------- Turn | Location | Event 19 | -11/Scrapyard | Discovered new exit (range 16) 60 | -11/Scrapyard | Entered Materials 313 | -10/Materials | Build established: Mutant 454 | -10/Materials | Discovered new exit (range 16) 472 | -10/Materials | Entered another Materials area 472 | -9/Materials | Evolved 2 slots: Propulsion x2 941 | -9/Materials | Repaired Imp. Aluminum Leg 1664 | -9/Materials | Lost 4 parts (3n1u) 1822 | -9/Materials | Discovered new exit (range 12) 1863 | -9/Materials | Entered another Materials area 1863 | -8/Materials | Evolved 2 slots: Utility x2 3114 | -8/Materials | Discovered new exit (range 20) 3199 | -8/Materials | Entered Factory 3199 | -7/Factory | Evolved 2 slots: Utility x1, Weapon x1 3259 | -7/Factory | Build established: Scavenger-Mutant 3413 | -7/Factory | Self-destructed Last Messages --------------- 03175_ Dropped Lgt. Armor Plating. 03176_ Acquired Hacking Suite. 03180_ R-06 Scavenger collects Core Shielding. 03182_ K-01 Serf collects debris. 03193_ R-06 Scavenger collects Imp. Heat Sink. 03197_ K-01 Serf collects debris. PARAMETERS=UTILITY+1,WEAPON+1 LOCATION=UNKNOWN GOAL=ESCAPE 03216_ Acquired Arc Projector. 03296_ Acquired Scythe. 03299_ Dropped Hvy. Assault Rifle. 03300_ Acquired Kinecellerator. 03401_ Fabricator completes L-41 Fighter. 03401_ ALERT: All DSF locations entering lockdown mode. 03401_ Aluminum Leg destroyed. 03403_ Imp. Light Armor Plating destroyed. 03409_ Cld. Ion Engine destroyed. 03409_ Aluminum Leg destroyed. Map ----- +----------------------------------------------------+ | | | | | | | | | | | | | | | | | | | | | | | | | | | | | | | | | | | | | | | | | | | ????????????##################? | | ????????????# # #? | | ????????????# # """" #? | | ????????????# [ # "Fl" #? | | ????????????# # l@l #? | | ????????######+##+########/##?? | | ????????# #??? | | ????????# ##### #######??? | | ????????????????# #????????? | | ????????????????# #????????? | | ????????????????# #????????? | | ?????????????####+##+######???? | | ?????????????# #???? | | ?????????????# #???? | | ?????????????# #???? | | ?????????????# """ """ #???? | | ?????????????# """ """ #???? | | ?????????????# """ """ #???? | | ?????????????+ #???? | | ?????????????# """ """ #???? | | ?????????????# """ """ #???? | | ?????????????# """ """ #???? | | ?????????? # #???? | | ?????? # [ #???? | | ????? ###########+##???? | | ????? #????? | | ?????^ #????? | | ????? #????? | | ???????# #????? | +----------------------------------------------------+ Best States ------------- Heat Dissipation 34 Energy Generation 14 Energy Capacity 280 Matter Stores 300 Matter Capacity 300 Sight Range 20 Terrain Scan Range 14 Terrain Scan Density 10 Additional Mass Support 6 Armor Coverage 450 Evasion (%) 55 Recoil Reduction 2 Offensive Hacking 10 Item Schematics ----------------- None Robot Schematics ------------------ None Fabricated ------------ Nothing Repaired ---------- Imp. Aluminum Leg | 57% | -9/Materials Alien Tech Used ----------------- None Achievements -------------- None Challenges ------------ None Game ------ Seed ReactionDisassembledJets Manual? 0 Play Time 00:26:17 Cumulative 33.0 hours Start 2025.07.04 @ 15:36:48 End 2025.07.04 @ 16:02:13 Sessions 1 Manual Loads 0 Difficulty Rogue Special Mode None Game No. 49 Rogue 49 Adventurer 0 Explorer 0 Win Type - Total 0 Types 0/0/0/0/0/0/0/0/0/0 Lore% 16 Gallery% 27 Achievement% 21 Wizard Run 0 Options --------- Layout 1 ASCII 0 Keyboard 0 Movement Mouse Keybinds 0 Fullscreen 1 Font 24/Smallcaps Map View 50x35 Zoom Use 0% Tactical HUD 1 Map Filters NONE Filters NONE Steam 1 RUN: 0e450ec4-79ee-4f7a-8475-3f35234573cf